fUSD/lending_fUSD_20260329
["ID","MTS","AMOUNT","RATE_DAILY","PERIOD"]
[419011765,1774750243189,-500.0,0.00015,2]
[419011766,1774750243199,-500.0,0.00015,2]
[419011767,1774750243208,-500.0,0.00015,2]
[419011768,1774750243218,-500.0,0.00015,2]
[419011769,1774750243228,-500.0,0.00015,2]
[419011770,1774750243238,-483.29461098,0.00015,2]
[419011771,1774750243248,-500.0,0.00015,2]
[419011772,1774750243258,-500.0,0.00015,2]
[419011773,1774750243267,-500.0,0.00015,2]
[419011774,1774750243277,-500.0,0.00015,2]
[419011775,1774750243287,-500.0,0.00015,2]
[419011776,1774750243298,-152.53186786,0.00015,2]
[419011777,1774750243308,-500.0,0.00015,2]
[419011778,1774750243319,-500.0,0.00015,2]
[419011779,1774750243328,-500.0,0.00015,2]
[419011780,1774750243339,-500.0,0.00015,2]
[419011781,1774750243348,-500.0,0.00015,2]
[419011782,1774750243359,-500.0,0.00015,2]
[419011783,1774750243369,-500.0,0.00015,2]
[419011784,1774750243378,-503.95632491,0.00015,2]
[419011785,1774750243388,-490.0,0.00015,2]
[419011786,1774750243398,-508.56311436,0.00015,2]
[419011787,1774750243408,-500.0,0.00015,2]
[419011788,1774750243418,-500.0,0.00015,2]
[419011789,1774750243428,-490.0,0.00015,2]
[419011791,1774750243438,-500.0,0.00015,2]
[419011793,1774750243448,-490.0,0.00015,2]
[419011794,1774750243458,-500.0,0.00015,2]
[419011795,1774750243468,-500.0,0.00015,2]
[419011796,1774750243478,-500.0,0.00015,2]
[419011797,1774750243488,-500.0,0.00015,2]
[419011799,1774750243498,-490.0,0.00015,2]
[419011801,1774750243508,-500.0,0.00015,2]
[419011802,1774750243517,-580.96645017,0.00015,2]
[419011803,1774750243527,-490.0,0.00015,2]
[419011804,1774750243537,-500.0,0.00015,2]
[419011805,1774750243546,-490.0,0.00015,2]
[419011806,1774750243557,-500.0,0.00015,2]
[419011807,1774750243566,-490.0,0.00015,2]
[419011808,1774750243576,-500.0,0.00015,2]
[419011809,1774750243585,-490.0,0.00015,2]
[419011810,1774750243596,-500.0,0.00015,2]
[419011811,1774750243606,-490.0,0.00015,2]
[419011812,1774750243616,-490.0,0.00015,2]
[419011813,1774750243626,-490.0,0.00015,2]
[419011814,1774750243636,-490.0,0.00015,2]
[419011815,1774750243646,-490.0,0.00015,2]
[419011816,1774750243657,-490.0,0.00015,2]
[419011817,1774750243667,-490.0,0.00015,2]
[419011818,1774750243678,-490.0,0.00015,2]
[419011819,1774750243687,-490.0,0.00015,2]
[419011820,1774750243697,-500.0,0.00015,2]
[419011821,1774750243706,-150.0,0.00015,2]
[419011822,1774750243716,-490.0,0.00015,2]
[419011823,1774750243726,-500.0,0.00015,2]
[419011824,1774750243735,-154.31995128,0.00015,2]
[419011825,1774750243745,-500.0,0.00015,2]
[419011826,1774750243755,-182.16957206,0.00015,2]
[419011827,1774750243765,-500.0,0.00015,2]
[419011828,1774750243774,-490.0,0.00015,2]
[419011829,1774750243784,-500.0,0.00015,2]
[419011830,1774750243794,-390.7556468,0.00015,2]
[419011831,1774750243803,-150.0,0.00015,2]
[419011832,1774750243812,-216.9963302,0.00015,2]
[419011833,1774750243822,-490.0,0.00015,2]
[419011834,1774750243832,-490.0,0.00015,2]
[419011835,1774750243841,-490.0,0.00015,2]
[419011836,1774750243851,-500.0,0.00015,2]
[419011837,1774750243860,-490.0,0.00015,2]
[419011838,1774750243870,-474.21241056,0.00015,2]
[419011839,1774750243879,-492.58098477,0.00015,2]
[419011840,1774750243888,-151.0,0.00015,2]
[419011841,1774750243898,-151.0,0.00015,2]
[419011842,1774750243907,-151.0,0.00015,2]
[419011843,1774750243917,-500.0,0.00015003,2]
[419011844,1774750243926,-500.0,0.00015003,2]
[419011845,1774750243936,-500.0,0.00015003,2]
[419011846,1774750243945,-500.0,0.00015003,2]
[419011847,1774750243955,-500.0,0.00015003,2]
[419011848,1774750243964,-500.0,0.00015003,2]
[419011849,1774750243975,-500.0,0.00015003,2]
[419011850,1774750243984,-500.0,0.00015003,2]
[419011851,1774750243994,-500.0,0.00015003,2]
[419011852,1774750244003,-219.10448352,0.00015003,2]
[419011853,1774750244012,-500.0,0.00015003,2]
[419011854,1774750244021,-500.0,0.00015003,2]
[419011855,1774750244031,-221.42926466,0.00015003,2]
[419011856,1774750244040,-429.0,0.00015003,2]
[419011857,1774750244049,-429.0,0.00015003,2]
[419011858,1774750244059,-500.0,0.00015003,2]
[419011859,1774750244068,-429.0,0.00015003,2]
[419011860,1774750244078,-500.0,0.00015003,2]
[419011861,1774750244087,-429.0,0.00015003,2]
[419011862,1774750244096,-500.0,0.00015003,2]
[419011863,1774750244106,-429.0,0.00015003,2]
[419011864,1774750244115,-414.92841658,0.00015003,2]
[419011865,1774750244125,-429.0,0.00015003,2]
[419011866,1774750244134,-429.0,0.00015003,2]
[419011867,1774750244143,-429.0,0.00015003,2]
[419011868,1774750244153,-500.0,0.00015003,2]
[419011869,1774750244162,-429.0,0.00015003,2]
[419011870,1774750244171,-500.0,0.00015003,2]
[419011871,1774750244255,-429.0,0.00015003,2]
[419011872,1774750244274,-500.0,0.00015003,2]
[419011873,1774750244283,-429.0,0.00015003,2]
[419011874,1774750244292,-429.0,0.00015003,2]
[419011875,1774750244302,-500.0,0.00015003,2]
[419011876,1774750244311,-429.0,0.00015003,2]
[419011877,1774750244321,-500.0,0.00015003,2]
[419011878,1774750244330,-429.0,0.00015003,2]
[419011879,1774750244339,-500.0,0.00015003,2]
[419011880,1774750244349,-429.0,0.00015003,2]
[419011881,1774750244358,-500.0,0.00015003,2]
[419011882,1774750244368,-429.0,0.00015003,2]
[419011883,1774750244377,-500.0,0.00015003,2]
[419011884,1774750244386,-500.0,0.00015003,2]
[419011885,1774750244395,-583.94965812,0.00015003,2]
[419011886,1774750244405,-429.0,0.00015003,2]
[419011887,1774750244415,-429.0,0.00015003,2]
[419011888,1774750244424,-429.0,0.00015003,2]
[419011889,1774750244434,-429.0,0.00015003,2]
[419011890,1774750244443,-429.0,0.00015003,2]
[419011892,1774750244453,-429.0,0.00015003,2]
[419011893,1774750244462,-429.0,0.00015003,2]
[419011894,1774750244472,-452.93669017,0.00015003,2]
[419011895,1774750244481,-151.0,0.00015003,2]
[419011896,1774750244491,-151.0,0.00015003,2]
[419011897,1774750244500,-151.0,0.00015003,2]
[419011898,1774750244509,-276.996245,0.00015003,2]
[419011899,1774750244518,-250.0,0.00015051,2]
[419011900,1774750244528,-736.0,0.00015063,2]
[419011901,1774750244537,-173.0,0.00015098,2]
[419011902,1774750244546,-425.0,0.0001514,2]
[419011903,1774750244555,-3292.0,0.0001516,2]
[419011904,1774750244565,-2009.0,0.000152,2]
[419011905,1774750244575,-2016.0,0.000152,2]
[419011906,1774750244584,-209.08,0.00015236,2]
[419011907,1774750244594,-5888.0,0.00015274,2]
[419011908,1774750244603,-374.92,0.0001532,2]
[419011909,1774750244612,-357.69163894,0.00015341,2]
[419011910,1774750244622,-425.0,0.00015342,2]
[419011911,1774750244631,-1716.73514063,0.00015342,2]
[419011912,1774750244641,-582.06877023,0.00015342,2]
[419011913,1774750244651,-2000.0,0.00015342,2]
[419011914,1774750244660,-889.39669243,0.00015342,2]
[419011915,1774750244669,-466.69355566,0.00015342,2]
[419011916,1774750244679,-2000.0,0.00015342,2]
[419011917,1774750244689,-503.557746,0.00015353,2]
[419011918,1774750244699,-503.557746,0.00015353,2]
[419011919,1774750244708,-503.557746,0.00015353,2]
[419011920,1774750244717,-503.557746,0.00015353,2]
[419011921,1774750244727,-350.0,0.00015354,2]
[419011922,1774750244737,-153.725362,0.00015358,2]
[419011923,1774750244747,-1600.0,0.00015373,2]
[419011924,1774750244756,-2000.0,0.000154,2]
[419011925,1774750244766,-2000.0,0.000154,2]
[419011926,1774750244775,-2000.0,0.000154,2]
[419011927,1774750244785,-164.34,0.00015402,2]
[419011928,1774750244794,-425.0,0.00015404,2]
[419011929,1774750244803,-500.0,0.00015432,2]
[419011930,1774750244813,-500.0,0.00015432,2]
[419011931,1774750244822,-389.61112945,0.00015432,2]
[419011932,1774750244831,-552.09,0.00015432,2]
[419011933,1774750244840,-500.0,0.00015432,2]
[419011934,1774750244850,-504.61807419,0.00015432,2]
[419011935,1774750244861,-307.422045,0.00015438,7]
[419011936,1774750244870,-151.0,0.00015446,2]
[419011937,1774750244880,-2003.48418562,0.000155,3]
[419011938,1774750244889,-150.0,0.00015526,2]
[419011939,1774750244898,-150.0,0.00015526,2]
[419011940,1774750244908,-150.0,0.00015526,2]
[419011941,1774750244917,-284.07676272,0.00015526,2]
[419011942,1774750244927,-500.0,0.00015526,2]
[419011943,1774750244937,-500.0,0.00015526,2]
[419011944,1774750244947,-158.3155795,0.00015526,2]
[419011945,1774750244956,-500.0,0.00015526,2]
[419011946,1774750244965,-500.0,0.00015526,2]
[419011947,1774750244974,-500.0,0.00015526,2]
[419011948,1774750244983,-500.0,0.00015526,2]
[419011949,1774750244992,-500.0,0.00015526,2]
[419011950,1774750245001,-153.40286809,0.00015526,2]
[419011951,1774750245012,-500.0,0.00015526,2]
[419011952,1774750245021,-500.0,0.00015526,2]
[419011953,1774750245030,-500.0,0.00015526,2]
[419011954,1774750245040,-500.0,0.00015526,2]
[419011955,1774750245049,-500.0,0.00015526,2]
[419011956,1774750245059,-500.0,0.00015526,2]
[419011957,1774750245068,-500.0,0.00015526,2]
[419011958,1774750245077,-383.60720851,0.00015526,2]
[419011959,1774750245086,-425.0,0.00015535,2]
[419011960,1774750245095,-154.53434814,0.00015588,2]
[419011961,1774750245105,-155.85026359,0.000156,2]
[419011962,1774750245114,-737.15,0.000156,2]
[419011963,1774750245123,-7615.24,0.000156,2]
[419011964,1774750245132,-805.5,0.000156,2]
[419011965,1774750245142,-1077.56,0.000156,2]
[419011966,1774750245152,-2500.0,0.000156,5]
[419011967,1774750245161,-425.0,0.00015631,2]
[419011968,1774750245170,-732.73812256,0.00015634,2]
[419011969,1774750245180,-2500.0,0.000157,5]
[419011970,1774750245189,-425.0,0.00015742,2]
[419011971,1774750245199,-1000.0,0.00015752,2]
[419011972,1774750245208,-249.71337092,0.00015755,2]
[419011973,1774750245217,-165.69703489,0.00015755,2]
[419011974,1774750245226,-1000.0,0.00015759,2]
[419011975,1774750245236,-1000.0,0.00015762,2]
[419011976,1774750245245,-1000.0,0.00015782,2]
[419011977,1774750245255,-1000.0,0.00015787,2]
[419011978,1774750245264,-295.651221,0.00015787,2]
[419011979,1774750245274,-295.651221,0.00015787,2]
[419011980,1774750245284,-295.651221,0.00015787,2]
[419011981,1774750245294,-295.651221,0.00015787,2]
[419011982,1774750245303,-457.04,0.000158,2]
[419011983,1774750245312,-2500.0,0.000158,5]
[419011984,1774750245322,-1000.0,0.00015801,2]
[419011985,1774750245331,-1000.0,0.00015811,2]
[419011986,1774750245340,-1000.0,0.00015812,2]
[419011987,1774750245350,-1000.0,0.00015816,2]
[419011988,1774750245359,-1000.0,0.00015824,2]
[419011989,1774750245368,-1959.26279,0.0001584,2]
[419011990,1774750245378,-1959.26279,0.0001584,2]
[419011991,1774750245387,-1959.2628,0.0001584,2]
[419011992,1774750245396,-1959.2628,0.0001584,2]
[419011993,1774750245406,-1959.26279,0.0001584,2]
[419011994,1774750245415,-1959.26279,0.0001584,2]
[419011995,1774750245424,-1000.0,0.00015854,2]
[419011996,1774750245433,-1000.0,0.00015854,2]
[419011997,1774750245443,-1000.0,0.00015856,2]
[419011998,1774750245453,-5888.0,0.00015863,2]
[419011999,1774750245463,-425.0,0.00015864,2]
[419012000,1774750245472,-1000.0,0.00015868,2]
[419012001,1774750245482,-1000.0,0.00015873,2]
[419012002,1774750245491,-1000.0,0.0001588,2]
[419012003,1774750245500,-1000.0,0.00015886,2]
[419012004,1774750245509,-1104.40507012,0.00015886,2]
[419012005,1774750245519,-1000.0,0.00015889,2]
[419012006,1774750245529,-2000.0,0.0001589,2]
[419012007,1774750245538,-2002.6659376,0.0001589,2]
[419012008,1774750245547,-1503.49998468,0.0001589,2]
[419012009,1774750245557,-1000.0,0.00015896,2]
[419012010,1774750245567,-3036.58363822,0.000159,2]
[419012011,1774750245577,-5000.0,0.000159,2]
[419012012,1774750245587,-151.0,0.000159,2]
[419012013,1774750245596,-151.0,0.000159,2]
[419012014,1774750245605,-151.0,0.000159,2]
[419012015,1774750245615,-2500.0,0.000159,5]
[419012016,1774750245625,-203141.45211849,0.000159,2]
[419012017,1774750245635,-502.90886906,0.000159,2]
[419012018,1774750245644,-178.93015126,0.000159,2]
[419012019,1774750245654,-8132.3300711,0.000159,2]
[419012020,1774750245663,-1372.94811729,0.000159,2]
[419012021,1774750245673,-562.70572857,0.000159,2]
[419012022,1774750245682,-2701.24991712,0.000159,2]
[419012023,1774750245692,-1000.0,0.00015904,2]
[419012024,1774750245701,-1000.0,0.00015919,2]
[419012025,1774750245711,-1000.0,0.00015926,2]
[419012026,1774750245720,-1000.0,0.0001593,2]
[419012027,1774750245730,-5888.0,0.0001593,2]
[419012028,1774750245739,-1000.0,0.00015937,2]
[419012029,1774750245749,-666.0,0.00015958,2]
[419012030,1774750245759,-1835.6799885,0.00015959,2]
[419012031,1774750245767,-31291.5515342,0.00015959,2]
[419012032,1774750245777,-123637.4323282,0.00015959,2]
[419012033,1774750245786,-34207.2348866,0.00015959,2]
[419012034,1774750245796,-151.0,0.00015959,2]
[419012035,1774750245807,-151.0,0.00015959,2]
[419012036,1774750245818,-151.0,0.00015959,2]
[419012037,1774750245828,-5000.0,0.0001596,2]
[419012038,1774750245837,-209.08,0.00015962,2]
[419012039,1774750245846,-700.0,0.0001597,2]
[419012040,1774750245856,-700.0,0.0001597,2]
[419012041,1774750245866,-854.65118905,0.0001597,2]
[419012042,1774750245875,-425.0,0.00015973,2]
[419012043,1774750245885,-1000.0,0.00015974,2]
[419012044,1774750245894,-5888.0,0.00015976,2]
[419012045,1774750245904,-1000.0,0.00015982,2]
[419012046,1774750245915,-1000.0,0.00015985,2]
[419012047,1774750245924,-400.28079234,0.0001599,2]
[419012048,1774750245934,-1000.0,0.00015991,2]
[419012049,1774750245944,-2902.0,0.00015994,5]
[419012050,1774750245953,-151.0,0.00015997,2]
[419012051,1774750245963,-677.2242101,0.00015999,2]
[419012052,1774750245973,-500.0,0.00015999,2]
[419012053,1774750245983,-336.64294585,0.00015999,2]
[419012054,1774750245992,-500.0,0.00015999,2]
[419012055,1774750246002,-500.0,0.00015999,2]
[419012056,1774750246012,-421.06308427,0.00015999,2]
[419012057,1774750246022,-552.09,0.00015999,2]
[419012059,1774750246110,-552.09,0.00015999,2]
[419012060,1774750246120,-552.09,0.00015999,2]
[419012061,1774750246129,-552.09,0.00015999,2]
[419012062,1774750246138,-552.09,0.00015999,2]
[419012063,1774750246147,-552.09,0.00015999,2]
[419012064,1774750246157,-552.09,0.00015999,2]
[419012065,1774750246166,-552.09,0.00015999,2]
[419012066,1774750246176,-552.09,0.00015999,2]
[419012067,1774750246185,-552.09,0.00015999,2]
[419012068,1774750246194,-552.09,0.00015999,2]
[419012069,1774750246203,-552.09,0.00015999,2]
[419012070,1774750246212,-552.09,0.00015999,2]
[419012071,1774750246222,-552.09,0.00015999,2]
[419012072,1774750246231,-552.09,0.00015999,2]
[419012073,1774750246240,-552.09,0.00015999,2]
[419012074,1774750246250,-552.09,0.00015999,2]
[419012075,1774750246259,-552.09,0.00015999,2]
[419012076,1774750246269,-552.28062743,0.00015999,2]
[419012077,1774750246278,-217.38717604,0.00015999,2]
[419012078,1774750246288,-503.557746,0.00015999,2]
[419012079,1774750246297,-503.557746,0.00015999,2]
[419012080,1774750246307,-503.557746,0.00015999,2]
[419012081,1774750246316,-503.557746,0.00015999,2]
[419012082,1774750246325,-3185592.40690095,0.00016,2]
[419012083,1774750246585,-20012.65425691,0.00016,2]
[419012084,1774750246736,-940.06141201,0.00012906,2]
[419012085,1774750246748,-243.67912059,0.00012906,2]
[419012086,1774750246758,-1183.7405326,0.00013542,2]
[419012087,1774750246767,-500.0,0.00013698,2]
[419012088,1774750246777,-18576.08640285,0.00013856,2]
[419012089,1774750246788,-443.4506406,0.00013856,2]
[419012090,1774750246962,757.8,7.678e-05,2]
[419012091,1774750247080,-1225.04008768,0.00013856,2]
[419012092,1774750247094,-500.0,0.00013856,2]
[419012112,1774750430050,800.0,0.00010353,2]
[419012113,1774750492602,813.86,0.00010036,2]
[419012114,1774750520650,-1200.0,0.000106,3]
[419012115,1774750520676,-1200.0,0.00010699,2]
[419012116,1774750520698,-300.0,0.00010699,2]
[419012117,1774750520721,-300.0,0.00010699,2]
[419012118,1774750520744,-300.0,0.00010699,2]
[419012119,1774750520766,-300.0,0.00010699,2]
[419012120,1774750520789,-500.0,0.000107,3]
[419012121,1774750520811,-600.0,0.000107,3]
[419012122,1774750520836,-2500.0,0.000107,3]
[419012123,1774750520860,-1500.0,0.00010742,2]
[419012124,1774750520882,-250.0,0.0001075,2]
[419012125,1774750520907,-1000.0,0.000108,3]
[419012126,1774750520930,-1200.0,0.000108,3]
[419012127,1774750520952,-3700.0,0.000108,3]
[419012128,1774750520973,-150.0,0.00010899,2]
[419012129,1774750520996,-1500.0,0.000109,3]
[419012130,1774750521020,-1800.0,0.000109,3]
[419012131,1774750521042,-5000.0,0.000109,3]
[419012132,1774750521063,-250.0,0.00011044,2]
[419012133,1774750521086,-900.0,0.00011316,2]
[419012134,1774750521109,-809.48,0.00011347,2]
[419012135,1774750521133,-23512.61797344,0.00011373,2]
[419012136,1774750521155,-731.4965478,0.00011373,2]
[419012137,1774750521176,-502.90886908,0.00011373,2]
[419012138,1774750521198,-887.80539949,0.00011373,2]
[419012139,1774750521219,-887.80539949,0.00011373,2]
[419012140,1774750521240,-150.0,0.000114,2]
[419012141,1774750521263,-150.99,0.000114,2]
[419012142,1774750521284,-9999.99,0.000114,2]
[419012143,1774750521304,-1792.87,0.000114,2]
[419012144,1774750536730,-5726.7684107,0.00011452,2]
[419012147,1774750793334,606.21,5.609e-05,2]
[419012148,1774750793368,606.21,5.904e-05,2]
[419012150,1774750793855,606.21,6.199e-05,2]
[419012151,1774750793904,606.21,6.494e-05,2]
[419012152,1774750794095,606.21,6.789e-05,2]
[419012153,1774750794284,606.21,7.084e-05,2]
[419012154,1774750794476,606.21,7.38e-05,2]
[419012155,1774750794874,606.21,7.675e-05,2]
[419012156,1774750795078,606.21,7.97e-05,2]
[419012157,1774750795262,606.21,8.265e-05,2]
[419012158,1774750795462,606.21,8.56e-05,2]
[419012159,1774750795664,606.21,8.856e-05,2]
[419012160,1774750795866,606.21,9.151e-05,2]
[419012161,1774750796072,505.42,9.446e-05,2]
[419012162,1774750796099,100.79,9.446e-05,2]
[419012163,1774750796271,606.21,9.741e-05,2]
[419012164,1774750796472,606.21,0.00010036,2]
[419012165,1774750796666,606.21,0.00010331,2]
[419012166,1774750897853,168.98,8.769e-05,2]
[419012167,1774751223683,463.37,8.59e-05,2]
[419012168,1774751224200,200.99,9.218e-05,2]
[419012169,1774751224726,432.78,0.00010164,2]
[419012170,1774751247616,1500.0,0.000105,3]
[419012171,1774751252554,-500.0,0.00010522,2]
[419012172,1774751252584,-3100.0,0.000106,3]
[419012173,1774751252730,-606.21,0.00010627,2]
[419012174,1774751252758,-250.0,0.00010627,2]
[419012175,1774751252786,-270.0,0.00010627,2]
[419012176,1774751255293,-4700.0,0.000107,3]
[419012177,1774751258599,-3700.01,0.000108,3]
[419012178,1774751262742,-2599.99,0.000108,3]
[419012179,1774751262771,-321.37546221,0.00010898,2]
[419012180,1774751266074,-2100.01,0.000109,3]
[419012181,1774751350760,508.66,9.976e-05,2]
[419012183,1774751408147,163.0,0.00010522,2]
[419012187,1774751432672,-269.0,0.00010555,2]
[419012189,1774751432681,-669.77,0.00010555,2]
[419012191,1774751432690,-5799.99,0.000109,3]
[419012193,1774751432699,-606.21,0.00010922,2]
[419012195,1774751432709,-1200.0,0.00010997,2]
[419012197,1774751432719,-1360.05,0.00010998,2]
[419012199,1774751432727,-321.37546221,0.00011086,2]
[419012201,1774751432737,-400.28079234,0.00011163,2]
[419012203,1774751432746,-300.0,0.00011172,2]
[419012205,1774751432755,-300.0,0.00011172,2]
[419012207,1774751432764,-150.0,0.00011172,2]
[419012209,1774751432773,-500.0,0.00011173,2]
[419012211,1774751432782,-500.0,0.00011173,2]
[419012213,1774751432791,-500.0,0.00011173,2]
[419012215,1774751432800,-500.0,0.00011173,2]
[419012217,1774751432809,-503.40008779,0.00011173,2]
[419012219,1774751432819,-500.0,0.00011173,2]
[419012221,1774751432829,-500.0,0.00011173,2]
[419012223,1774751432837,-500.0,0.00011173,2]
[419012226,1774751432846,-500.0,0.00011173,2]
[419012228,1774751432856,-500.0,0.00011173,2]
[419012230,1774751432865,-112105.65473958,0.00011173,2]
[419012232,1774751432876,-1254.41808677,0.00011173,2]
[419012247,1774751433218,-90.7353503,0.00011173,2]
[419012249,1774751438969,-500.0,0.00011172,2]
[419012250,1774751438979,-296.95644632,0.00011172,2]
[419012251,1774751438988,-500.0,0.00011172,2]
[419012252,1774751438998,-161.48271953,0.00011172,2]
[419012253,1774751439007,-250.0,0.00011172,2]
[419012254,1774751439017,-500.0,0.00011172,2]
[419012255,1774751439026,-500.0,0.00011172,2]
[419012257,1774751439035,-2386549.19182335,0.00011173,2]
[419012259,1774751439045,-150.0,0.000112,2]
[419012260,1774751439054,-606.21,0.00011217,2]
[419012261,1774751439064,-200.0,0.00011245,2]
[419012262,1774751439074,-1200.0,0.0001127,2]
[419012263,1774751439084,-2500.0,0.00011272,2]
[419012264,1774751439093,-31077.5534,0.00011272,2]
[419012265,1774751439103,-7941.61,0.00011273,2]
[419012266,1774751439114,-150.99,0.00011273,2]
[419012267,1774751439124,-321.37546221,0.00011273,2]
[419012268,1774751439133,-23574.28172928,0.00011273,2]
[419012270,1774751439143,-335.27257938,0.00011273,2]
[419012274,1774751439269,-42679.90013248,0.00011273,2]
[419012276,1774751439279,-2701.24991713,0.00011273,2]
[419012277,1774751439289,-400.28079234,0.00011362,2]
[419012278,1774751439299,-391.0,0.00011367,2]
[419012279,1774751439309,-1000.0,0.00011371,2]
[419012280,1774751439319,-173.419,0.00011372,2]
[419012281,1774751439329,-1277.092,0.00011372,2]
[419012282,1774751439339,-1500000.0,0.00011372,2]
[419012283,1774751439348,-879.5849,0.00011373,2]
[419012284,1774751439359,-73822.008,0.00011373,2]
[419012285,1774751439369,-500.0,0.00011373,2]
[419012286,1774751439379,-500.0,0.00011373,2]
[419012287,1774751439389,-1278.92098356,0.00011373,2]
[419012288,1774751439399,-8132.33007111,0.00011373,2]
[419012289,1774751439410,-178.93015126,0.00011373,2]
[419012290,1774751439419,-562.70572857,0.00011373,2]
[419012291,1774751439429,-416.28305486,0.00011389,2]
[419012292,1774751439439,-336.0,0.00011419,2]
[419012293,1774751439448,-1892.0,0.00011441,2]
[419012294,1774751439459,-243.0,0.00011442,2]
[419012295,1774751439468,-3716.0,0.00011452,2]
[419012296,1774751439478,-290.79533457,0.00011464,2]
[419012297,1774751439487,-280.0,0.00011464,2]
[419012298,1774751439497,-200.0,0.00011466,2]
[419012299,1774751439506,-151.0,0.00011466,2]
[419012300,1774751439515,-151.0,0.00011466,2]
[419012301,1774751439524,-151.0,0.00011466,2]
[419012302,1774751439534,-151.0,0.00011466,2]
[419012303,1774751439544,-151.0,0.00011466,2]
[419012304,1774751439554,-151.0,0.00011466,2]
[419012305,1774751439563,-151.0,0.00011466,2]
[419012306,1774751439573,-151.0,0.00011466,2]
[419012307,1774751439582,-151.0,0.00011466,2]
[419012308,1774751439592,-151.0,0.00011466,2]
[419012309,1774751439601,-151.0,0.00011466,2]
[419012310,1774751439611,-151.0,0.0001147,2]
[419012311,1774751439620,-151.0,0.0001147,2]
[419012312,1774751439629,-151.0,0.0001147,2]
[419012313,1774751439639,-1023.96434805,0.00011472,3]
[419012314,1774751439649,-500.0,0.00011473,2]
[419012315,1774751439658,-500.0,0.00011473,2]
[419012316,1774751439667,-167.63692162,0.00011473,2]
[419012317,1774751439677,-500.0,0.00011473,2]
[419012318,1774751439686,-500.0,0.00011473,2]
[419012319,1774751439695,-500.30534857,0.00011473,2]
[419012320,1774751439705,-500.0,0.00011473,2]
[419012321,1774751439714,-500.0,0.00011473,2]
[419012322,1774751439723,-167.52802512,0.00011473,2]
[419012323,1774751439732,-500.0,0.00011473,2]
[419012324,1774751439742,-500.0,0.00011473,2]
[419012325,1774751439751,-500.0,0.00011473,2]
[419012326,1774751439760,-429.85911728,0.00011473,2]
[419012327,1774751439770,-500.0,0.00011473,2]
[419012328,1774751439779,-645.89,0.00011473,2]
[419012329,1774751439788,-499.0,0.00011487,2]
[419012330,1774751439797,-2565.88,0.00011507,2]
[419012331,1774751439808,-1000.0,0.000116,2]
[419012332,1774751439818,-250.0,0.00011611,2]
[419012333,1774751439827,-250.0,0.00011611,2]
[419012334,1774751439836,-5000.0,0.00011611,2]
[419012335,1774751439846,-1200.0,0.00011612,2]
[419012336,1774751439854,-500.0,0.00011647,2]
[419012337,1774751439863,-501.32363081,0.00011721,2]
[419012338,1774751439873,-409.82711305,0.00011721,2]
[419012339,1774751439883,-1000.0,0.00011721,2]
[419012340,1774751439892,-1000.0,0.00011721,2]
[419012341,1774751439902,-454.80496102,0.00011721,2]